fUSD/lending_fUSD_20240628
["ID","MTS","AMOUNT","RATE_DAILY","PERIOD"]
[330563163,1719574260799,-3125.39,0.00019178,2]
[330563164,1719574260810,-151.0,0.00019178,2]
[330563165,1719574260820,-151.0,0.00019178,2]
[330563166,1719574260830,-151.0,0.00019178,2]
[330563167,1719574260840,-2564.88,0.00019178,2]
[330563168,1719574260850,-769.6,0.00019178,2]
[330563169,1719574260860,-151.0,0.00019178,2]
[330563170,1719574260869,-151.0,0.00019178,2]
[330563171,1719574260880,-500.0,0.00019178,2]
[330563172,1719574260890,-151.0,0.00019178,2]
[330563173,1719574260900,-151.0,0.00019178,2]
[330563174,1719574260910,-3.30056366,0.00019178,2]
[330563175,1719574260924,-147.69943634,0.00019178,2]
[330563176,1719574260933,-151.0,0.00019178,2]
[330563177,1719574260943,-151.0,0.00019178,2]
[330563178,1719574260953,-151.0,0.00019178,2]
[330563179,1719574260963,-500.0,0.00019178,2]
[330563180,1719574260972,-213.683278,0.00019178,2]
[330563181,1719574260982,-75.5475201,0.00019178,2]
[330563182,1719574260995,-75.4524799,0.00019178,2]
[330563183,1719574261013,-224.5225201,0.00019178,2]
[330563184,1719574261026,-13.9778729,0.00019178,2]
[330563185,1719574261036,-500.0,0.00019178,2]
[330563186,1719574261049,-500.0,0.00019178,2]
[330563187,1719574261059,-1039.21,0.00019178,2]
[330563188,1719574261069,-1488.89,0.00019178,2]
[330563189,1719574261080,-151.0,0.00019178,2]
[330563190,1719574261090,-151.0,0.00019178,2]
[330563191,1719574261101,-151.0,0.00019178,2]
[330563192,1719574261111,-151.0,0.00019178,2]
[330563193,1719574261120,-500.0,0.00019178,2]
[330563194,1719574261135,-1186.46,0.00019178,2]
[330563195,1719574261145,-500.0,0.00019178,2]
[330563196,1719574261155,-10761.13,0.00019178,2]
[330563197,1719574261165,-500.0,0.00019178,2]
[330563198,1719574261177,-500.0,0.00019178,2]
[330563199,1719574261187,-500.0,0.00019178,2]
[330563200,1719574261197,-500.0,0.00019178,2]
[330563201,1719574261207,-500.0,0.00019178,2]
[330563202,1719574261220,-594.61,0.00019178,2]
[330563203,1719574261231,-500.0,0.00019178,2]
[330563204,1719574261244,-500.0,0.00019178,2]
[330563205,1719574261254,-500.0,0.00019178,2]
[330563206,1719574261264,-500.0,0.00019178,2]
[330563207,1719574261275,-1773.83,0.00019178,2]
[330563208,1719574261285,-1096.15,0.00019178,2]
[330563209,1719574261503,-500.0,0.00019178,2]
[330563210,1719574261513,-500.0,0.00019178,2]
[330563211,1719574261524,-500.0,0.00019178,2]
[330563212,1719574261533,-500.0,0.00019178,2]
[330563213,1719574261543,-911.73,0.00019178,2]
[330563214,1719574261554,-500.0,0.00019178,2]
[330563215,1719574261563,-500.0,0.00019178,2]
[330563216,1719574261572,-500.0,0.00019178,2]
[330563217,1719574261581,-1073.42,0.00019178,2]
[330563218,1719574261591,-500.0,0.00019178,2]
[330563219,1719574261600,-500.0,0.00019178,2]
[330563220,1719574261609,-500.0,0.00019178,2]
[330563221,1719574261618,-967.63,0.00019178,2]
[330563222,1719574261627,-500.0,0.00019178,2]
[330563223,1719574261636,-500.0,0.00019178,2]
[330563224,1719574261646,-514.37,0.00019178,2]
[330563225,1719574261656,-1119.24,0.00019178,2]
[330563226,1719574261666,-24.85845356,0.00019178,2]
[330563227,1719574261682,-475.14154644,0.00019178,2]
[330563228,1719574261691,-3171.96,0.00019178,2]
[330563229,1719574261701,-500.0,0.00019178,2]
[330563230,1719574261711,-905.91,0.00019178,2]
[330563231,1719574261723,-500.0,0.00019178,2]
[330563232,1719574261733,-992.4,0.00019178,2]
[330563233,1719574261742,-890.96,0.00019178,2]
[330563234,1719574261753,-500.0,0.00019178,2]
[330563235,1719574261762,-500.0,0.00019178,2]
[330563236,1719574261773,-500.0,0.00019178,2]
[330563237,1719574261782,-500.0,0.00019178,2]
[330563238,1719574261792,-666.9,0.00019178,2]
[330563239,1719574261803,-500.0,0.00019178,2]
[330563240,1719574261812,-845.55,0.00019178,2]
[330563241,1719574261822,-500.0,0.00019178,2]
[330563242,1719574261832,-1160.05,0.00019178,2]
[330563243,1719574261842,-500.0,0.00019178,2]
[330563244,1719574261853,-2191.11,0.00019178,2]
[330563245,1719574261862,-500.0,0.00019178,2]
[330563246,1719574261872,-949.09,0.00019178,2]
[330563247,1719574261882,-619.76,0.00019178,2]
[330563248,1719574261892,-2674.68,0.00019178,2]
[330563249,1719574261901,-500.0,0.00019178,2]
[330563250,1719574261911,-2004.33,0.00019178,2]
[330563251,1719574261920,-500.0,0.00019178,2]
[330563252,1719574261929,-3536.13,0.00019178,2]
[330563253,1719574261939,-4361.61,0.00019178,2]
[330563254,1719574261948,-500.0,0.00019178,2]
[330563255,1719574261958,-500.0,0.00019178,2]
[330563256,1719574261967,-2500.0,0.00019178,3]
[330563257,1719574261977,-695.66,0.00019178,2]
[330563258,1719574261987,-2652.32,0.00019178,2]
[330563259,1719574261996,-500.0,0.00019178,2]
[330563260,1719574262006,-1557.71,0.00019178,2]
[330563261,1719574262016,-500.0,0.00019178,2]
[330563262,1719574262026,-500.0,0.00019178,2]
[330563263,1719574262036,-949.49,0.00019178,2]
[330563264,1719574262046,-1104.77,0.00019178,2]
[330563265,1719574262056,-1164.35,0.00019178,2]
[330563266,1719574262065,-1317.54,0.00019178,2]
[330563267,1719574262079,-731.21,0.00019178,2]
[330563268,1719574262088,-500.0,0.00019178,2]
[330563269,1719574262098,-1344.55,0.00019178,2]
[330563270,1719574262108,-500.0,0.00019178,2]
[330563271,1719574262118,-983.55,0.00019178,2]
[330563272,1719574262137,-1088.82,0.00019178,2]
[330563273,1719574262149,-500.0,0.00019178,2]
[330563274,1719574262160,-500.0,0.00019178,2]
[330563275,1719574262170,-500.0,0.00019178,2]
[330563276,1719574262182,-500.0,0.00019178,2]
[330563277,1719574262191,-3262.98,0.00019178,2]
[330563278,1719574262201,-500.0,0.00019178,2]
[330563279,1719574262210,-500.0,0.00019178,2]
[330563280,1719574262220,-500.0,0.00019178,2]
[330563281,1719574262229,-1029.99,0.00019178,2]
[330563282,1719574262239,-1150.4,0.00019178,2]
[330563283,1719574262248,-577.9,0.00019178,2]
[330563284,1719574262258,-151.0,0.00019178,2]
[330563285,1719574262268,-240.42903844,0.00019178,2]
[330563286,1719574262279,-151.0,0.00019178,2]
[330563287,1719574262289,-820.3,0.00019178,2]
[330563288,1719574262303,-500.0,0.00019178,2]
[330563289,1719574262314,-500.0,0.00019178,2]
[330563290,1719574262324,-1361.21,0.00019178,2]
[330563291,1719574262334,-500.0,0.00019178,2]
[330563292,1719574262343,-151.0,0.00019178,2]
[330563293,1719574262353,-151.0,0.00019178,2]
[330563294,1719574262363,-1193.28333926,0.00019178,2]
[330563295,1719574262373,-500.0,0.00019178,2]
[330563296,1719574262383,-151.0,0.00019178,2]
[330563297,1719574262394,-151.0,0.00019178,2]
[330563298,1719574262403,-151.0,0.00019178,2]
[330563299,1719574262413,-670.29,0.00019178,2]
[330563300,1719574262423,-295.52212,0.00019178,2]
[330563301,1719574262433,-751.99,0.00019178,2]
[330563302,1719574262442,-500.0,0.00019178,2]
[330563303,1719574262451,-500.0,0.00019178,2]
[330563304,1719574262460,-500.0,0.00019178,2]
[330563305,1719574262469,-1051.24,0.00019178,2]
[330563306,1719574262479,-1324.71,0.00019178,2]
[330563307,1719574262488,-1332.65,0.00019178,2]
[330563308,1719574262498,-151.0,0.00019178,2]
[330563309,1719574262507,-500.0,0.00019178,2]
[330563310,1719574262516,-151.0,0.00019178,2]
[330563311,1719574262525,-1024.6,0.00019178,2]
[330563312,1719574262534,-151.0,0.00019178,2]
[330563313,1719574262544,-1256.89,0.00019178,2]
[330563314,1719574262557,-151.0,0.00019178,2]
[330563315,1719574262566,-500.0,0.00019178,2]
[330563316,1719574262575,-151.0,0.00019178,2]
[330563317,1719574262585,-151.0,0.00019178,2]
[330563318,1719574262594,-500.0,0.00019178,2]
[330563319,1719574262603,-151.0,0.00019178,2]
[330563320,1719574262613,-151.0,0.00019178,2]
[330563321,1719574262623,-151.0,0.00019178,2]
[330563322,1719574262631,-151.0,0.00019178,2]
[330563323,1719574262641,-151.0,0.00019178,2]
[330563324,1719574262650,-151.0,0.00019178,2]
[330563325,1719574262659,-151.0,0.00019178,2]
[330563326,1719574262668,-151.0,0.00019178,2]
[330563327,1719574262677,-245.82005,0.00019178,2]
[330563328,1719574262687,-151.0,0.00019178,2]
[330563329,1719574262696,-151.0,0.00019178,2]
[330563330,1719574262705,-1184.51,0.00019178,2]
[330563331,1719574262715,-500.0,0.00019178,2]
[330563332,1719574262724,-1592.54,0.00019178,2]
[330563333,1719574262733,-1010.88,0.00019178,2]
[330563334,1719574262743,-500.0,0.00019178,2]
[330563335,1719574262752,-1345.25,0.00019178,2]
[330563336,1719574262761,-500.0,0.00019178,2]
[330563337,1719574262783,-151.0,0.00019178,2]
[330563338,1719574262804,-889.61,0.00019178,2]
[330563339,1719574262813,-151.0,0.00019178,2]
[330563340,1719574262823,-151.0,0.00019178,2]
[330563341,1719574262832,-500.0,0.00019178,2]
[330563342,1719574262841,-151.0,0.00019178,2]
[330563343,1719574262850,-1008.1,0.00019178,2]
[330563344,1719574262860,-151.0,0.00019178,2]
[330563345,1719574262870,-500.0,0.00019178,2]
[330563346,1719574262879,-151.0,0.00019178,2]
[330563347,1719574262889,-151.0,0.00019178,2]
[330563348,1719574262899,-151.0,0.00019178,2]
[330563349,1719574262908,-236.916694,0.00019178,2]
[330563350,1719574262918,-500.0,0.00019178,2]
[330563351,1719574262927,-500.0,0.00019178,2]
[330563352,1719574262936,-500.0,0.00019178,2]
[330563353,1719574262946,-500.0,0.00019178,2]
[330563354,1719574262956,-1221.18,0.00019178,2]
[330563355,1719574262965,-500.0,0.00019178,2]
[330563356,1719574262975,-579.04,0.00019178,2]
[330563357,1719574262984,-500.0,0.00019178,2]
[330563358,1719574262993,-500.0,0.00019178,2]
[330563359,1719574263003,-1915.69,0.00019178,2]
[330563360,1719574263012,-1108.42,0.00019178,2]
[330563361,1719574263021,-500.0,0.00019178,2]
[330563362,1719574263031,-1326.59,0.00019178,2]
[330563363,1719574263040,-1625.22,0.00019178,2]
[330563364,1719574263050,-3382.38,0.00019178,2]
[330563365,1719574263059,-1165.92,0.00019178,2]
[330563366,1719574263068,-500.0,0.00019178,2]
[330563367,1719574263077,-948.64,0.00019178,2]
[330563368,1719574263086,-151.0,0.00019178,2]
[330563369,1719574263097,-500.0,0.00019178,2]
[330563370,1719574263106,-547.36199835,0.00019178,2]
[330563371,1719574263115,-151.0,0.00019178,2]
[330563372,1719574263129,-1398.04,0.00019178,2]
[330563373,1719574263141,-7626.12,0.00019178,2]
[330563374,1719574263151,-151.0,0.00019178,2]
[330563375,1719574263162,-151.0,0.00019178,2]
[330563376,1719574263175,-151.0,0.00019178,2]
[330563377,1719574263184,-703.95,0.00019178,2]
[330563378,1719574263193,-151.0,0.00019178,2]
[330563379,1719574263203,-500.0,0.00019178,2]
[330563380,1719574263214,-151.0,0.00019178,2]
[330563381,1719574263224,-151.0,0.00019178,2]
[330563382,1719574263234,-151.0,0.00019178,2]
[330563383,1719574263245,-500.0,0.00019178,2]
[330563384,1719574263255,-151.0,0.00019178,2]
[330563385,1719574263264,-1219.35,0.00019178,2]
[330563386,1719574263275,-151.0,0.00019178,2]
[330563387,1719574263284,-151.0,0.00019178,2]
[330563388,1719574263293,-629.65,0.00019178,2]
[330563389,1719574263305,-500.0,0.00019178,2]
[330563390,1719574263314,-151.0,0.00019178,2]
[330563391,1719574263323,-151.0,0.00019178,2]
[330563392,1719574263332,-2888.74,0.00019178,2]
[330563393,1719574263342,-500.0,0.00019178,2]
[330563394,1719574263351,-1559.81,0.00019178,2]
[330563395,1719574263361,-500.0,0.00019178,2]
[330563396,1719574263370,-1410.86,0.00019178,2]
[330563397,1719574263378,-500.0,0.00019178,2]
[330563398,1719574263387,-500.0,0.00019178,2]
[330563399,1719574263397,-936.46,0.00019178,2]
[330563400,1719574263406,-1410.16,0.00019178,2]
[330563401,1719574263416,-500.0,0.00019178,2]
[330563402,1719574263425,-151.0,0.00019178,2]
[330563403,1719574263435,-500.0,0.00019178,2]
[330563404,1719574263444,-151.0,0.00019178,2]
[330563405,1719574263454,-151.0,0.00019178,2]
[330563406,1719574263463,-500.0,0.00019178,2]
[330563407,1719574263472,-151.0,0.00019178,2]
[330563408,1719574263481,-213.226342,0.00019178,2]
[330563409,1719574263490,-2266.72,0.00019178,2]
[330563410,1719574263499,-151.0,0.00019178,2]
[330563411,1719574263509,-151.0,0.00019178,2]
[330563412,1719574263518,-151.0,0.00019178,2]
[330563413,1719574263528,-151.0,0.00019178,2]
[330563414,1719574263537,-2751.5,0.00019178,2]
[330563415,1719574263549,-151.0,0.00019178,2]
[330563416,1719574263558,-2112.07,0.00019178,2]
[330563417,1719574263567,-1692.68,0.00019178,2]
[330563418,1719574263576,-151.0,0.00019178,2]
[330563419,1719574263585,-151.0,0.00019178,2]
[330563420,1719574263594,-151.0,0.00019178,2]
[330563421,1719574263603,-151.0,0.00019178,2]
[330563422,1719574263612,-151.0,0.00019178,2]
[330563423,1719574263623,-151.0,0.00019178,2]
[330563424,1719574263633,-154.090713,0.00019178,2]
[330563425,1719574263642,-151.0,0.00019178,2]
[330563426,1719574263651,-151.0,0.00019178,2]
[330563427,1719574263660,-151.0,0.00019178,2]
[330563428,1719574263669,-500.0,0.00019178,2]
[330563429,1719574263679,-151.0,0.00019178,2]
[330563430,1719574263688,-1148.24,0.00019178,2]
[330563431,1719574263698,-151.0,0.00019178,2]
[330563432,1719574263707,-186.569371,0.00019178,2]
[330563433,1719574263717,-1453.76,0.00019178,2]
[330563434,1719574263726,-500.0,0.00019178,2]
[330563435,1719574263736,-500.0,0.00019178,2]
[330563436,1719574263746,-500.0,0.00019178,2]
[330563437,1719574263755,-500.0,0.00019178,2]
[330563438,1719574263764,-4918.33,0.00019178,2]
[330563439,1719574263773,-2577.5,0.00019178,2]
[330563440,1719574263782,-462.40855919,0.00019178,2]
[330563441,1719574263793,-500.0,0.00019178,2]
[330563442,1719574263804,-1246.35,0.00019178,2]
[330563443,1719574263813,-500.0,0.00019178,2]
[330563444,1719574263823,-500.0,0.00019178,2]
[330563445,1719574263832,-2038.57,0.00019178,2]
[330563446,1719574263842,-500.0,0.00019178,2]
[330563447,1719574263852,-500.0,0.00019178,2]
[330563448,1719574263861,-1813.89,0.00019178,2]
[330563449,1719574263871,-500.0,0.00019178,2]
[330563450,1719574263880,-500.0,0.00019178,2]
[330563451,1719574263889,-2414.91,0.00019178,2]
[330563452,1719574263899,-1132.44,0.00019178,2]
[330563453,1719574263908,-955.7,0.00019178,2]
[330563454,1719574263918,-3754.12,0.00019178,2]
[330563455,1719574263927,-1153.96,0.00019178,2]
[330563456,1719574263936,-151.0,0.00019178,2]
[330563457,1719574263947,-1099.74,0.00019178,2]
[330563458,1719574263956,-688.11,0.00019178,2]
[330563459,1719574263965,-151.0,0.00019178,2]
[330563460,1719574263975,-151.0,0.00019178,2]
[330563461,1719574263984,-500.0,0.00019178,2]
[330563462,1719574263994,-624.43788241,0.00019178,2]
[330563463,1719574264003,-151.0,0.00019178,2]
[330563464,1719574264012,-151.0,0.00019178,2]
[330563465,1719574264021,-1513.93,0.00019178,2]
[330563466,1719574264030,-151.0,0.00019178,2]
[330563467,1719574264040,-1695.67,0.00019178,2]
[330563468,1719574264051,-2434.44,0.00019178,2]
[330563469,1719574264060,-500.0,0.00019178,2]
[330563470,1719574264069,-500.0,0.00019178,2]
[330563471,1719574264078,-500.0,0.00019178,2]
[330563472,1719574264088,-500.0,0.00019178,2]
[330563473,1719574264097,-151.0,0.00019178,2]
[330563474,1719574264107,-1032.55,0.00019178,2]
[330563475,1719574264116,-500.0,0.00019178,2]
[330563476,1719574264125,-151.0,0.00019178,2]
[330563477,1719574264137,-1666.0,0.00019178,2]
[330563478,1719574264146,-151.0,0.00019178,2]
[330563479,1719574264155,-151.0,0.00019178,2]
[330563480,1719574264164,-151.0,0.00019178,2]
[330563481,1719574264175,-151.0,0.00019178,2]
[330563482,1719574264184,-151.0,0.00019178,2]
[330563483,1719574264193,-203.810951,0.00019178,2]
[330563484,1719574264202,-758.17,0.00019178,2]
[330563485,1719574264213,-572.2,0.00019178,2]
[330563486,1719574264222,-151.0,0.00019178,2]
[330563487,1719574264233,-151.0,0.00019178,2]
[330563488,1719574264243,-500.0,0.00019178,2]
[330563489,1719574264252,-151.0,0.00019178,2]
[330563490,1719574264261,-754.46,0.00019178,2]
[330563491,1719574264270,-151.0,0.00019178,2]
[330563492,1719574264280,-1625.67,0.00019178,2]
[330563493,1719574264289,-1657.32,0.00019178,2]
[330563494,1719574264301,-500.0,0.00019178,2]
[330563495,1719574264310,-995.9,0.00019178,2]
[330563496,1719574264319,-500.0,0.00019178,2]
[330563497,1719574264327,-500.0,0.00019178,2]
[330563498,1719574264336,-500.0,0.00019178,2]
[330563499,1719574264345,-727.49,0.00019178,2]
[330563500,1719574264355,-580.72,0.00019178,2]
[330563501,1719574264364,-500.0,0.00019178,2]
[330563502,1719574264373,-1091.98,0.00019178,2]
[330563503,1719574264383,-500.0,0.00019178,2]
[330563504,1719574264392,-791.82,0.00019178,2]
[330563505,1719574264401,-500.0,0.00019178,2]
[330563506,1719574264411,-500.0,0.00019178,2]
[330563507,1719574264420,-1418.66,0.00019178,2]
[330563508,1719574264429,-1954.77,0.00019178,2]
[330563509,1719574264438,-1493.51,0.00019178,2]
[330563510,1719574264447,-500.0,0.00019178,2]
[330563511,1719574264456,-2435.28,0.00019178,2]
[330563512,1719574264465,-500.0,0.00019178,2]
[330563513,1719574264474,-500.0,0.00019178,2]
[330563514,1719574264483,-764.88,0.00019178,2]
[330563515,1719574264492,-500.0,0.00019178,2]
[330563516,1719574264501,-500.0,0.00019178,2]
[330563517,1719574264510,-428.29088448,0.00019178,2]
[330563518,1719574264519,-4348.08,0.00019178,2]
[330563519,1719574264528,-1124.53,0.00019178,2]
[330563520,1719574264537,-7238.99,0.00019178,2]
[330563521,1719574264546,-500.0,0.00019178,2]
[330563522,1719574264558,-2804.23,0.00019178,2]
[330563523,1719574264567,-500.0,0.00019178,2]
[330563524,1719574264576,-500.0,0.00019178,2]
[330563525,1719574264585,-500.0,0.00019178,2]
[330563526,1719574264594,-611.7,0.00019178,2]
[330563527,1719574264603,-500.0,0.00019178,2]
[330563528,1719574264612,-500.0,0.00019178,2]
[330563529,1719574264621,-998.95,0.00019178,2]
[330563530,1719574264630,-585.54,0.00019178,2]
[330563531,1719574264641,-500.0,0.00019178,2]
[330563532,1719574264651,-500.0,0.00019178,2]
[330563533,1719574264660,-1404.55,0.00019178,2]
[330563534,1719574264669,-500.0,0.00019178,2]
[330563535,1719574264678,-548.23,0.00019178,2]
[330563536,1719574264687,-877.11,0.00019178,2]
[330563537,1719574264697,-416.234565,0.00019178,2]
[330563538,1719574264707,-416.234565,0.00019178,2]
[330563539,1719574264717,-927.03,0.00019178,2]
[330563540,1719574264726,-416.234565,0.00019178,2]
[330563541,1719574264735,-2539.64,0.00019178,2]
[330563542,1719574264744,-416.234565,0.00019178,2]
[330563543,1719574264754,-957.65,0.00019178,2]
[330563544,1719574264763,-500.0,0.00019178,2]
[330563545,1719574264772,-500.0,0.00019178,2]
[330563546,1719574264782,-500.0,0.00019178,2]
[330563547,1719574264791,-416.234565,0.00019178,2]
[330563548,1719574264801,-416.234565,0.00019178,2]
[330563549,1719574264810,-416.234565,0.00019178,2]
[330563550,1719574264820,-1627.87,0.00019178,2]
[330563551,1719574264829,-416.234565,0.00019178,2]
[330563552,1719574264838,-416.234565,0.00019178,2]
[330563553,1719574264847,-416.234565,0.00019178,2]
[330563554,1719574264856,-416.234565,0.00019178,2]
[330563555,1719574264865,-416.234565,0.00019178,2]
[330563556,1719574264874,-500.0,0.00019178,2]
[330563557,1719574264883,-416.234565,0.00019178,2]
[330563558,1719574264892,-732.21,0.00019178,2]
[330563559,1719574264901,-1181.45,0.00019178,2]
[330563560,1719574264910,-416.234565,0.00019178,2]
[330563561,1719574264919,-500.0,0.00019178,2]
[330563562,1719574264929,-416.234565,0.00019178,2]
[330563563,1719574264938,-602.45,0.00019178,2]
[330563564,1719574264947,-416.234565,0.00019178,2]
[330563565,1719574264957,-151.0,0.00019178,2]
[330563566,1719574264966,-1756.25,0.00019178,2]
[330563567,1719574264975,-416.234565,0.00019178,2]
[330563568,1719574264984,-151.0,0.00019178,2]
[330563569,1719574264995,-416.234565,0.00019178,2]
[330563570,1719574265005,-151.0,0.00019178,2]
[330563571,1719574265015,-416.234565,0.00019178,2]
[330563572,1719574265026,-151.0,0.00019178,2]
[330563573,1719574265036,-416.234569,0.00019178,2]
[330563574,1719574265046,-500.0,0.00019178,2]
[330563575,1719574265059,-151.0,0.00019178,2]
[330563576,1719574265068,-500.0,0.00019178,2]
[330563577,1719574265077,-151.0,0.00019178,2]
[330563578,1719574265089,-151.0,0.00019178,2]
[330563579,1719574265098,-151.0,0.00019178,2]
[330563580,1719574265107,-3174.42,0.00019178,2]
[330563581,1719574265116,-162.381624,0.00019178,2]
[330563582,1719574265125,-3302.02,0.00019178,2]
[330563583,1719574265139,-500.0,0.00019178,2]
[330563584,1719574265148,-500.0,0.00019178,2]
[330563585,1719574265156,-509.87,0.00019178,2]
[330563586,1719574265166,-500.0,0.00019178,2]
[330563587,1719574265177,-500.0,0.00019178,2]
[330563588,1719574265187,-787.61,0.00019178,2]
[330563589,1719574265196,-500.0,0.00019178,2]
[330563590,1719574265206,-1283.51,0.00019178,2]
[330563591,1719574265217,-1408.02,0.00019178,2]
[330563592,1719574265226,-762.96,0.00019178,2]
[330563593,1719574265235,-2026.65,0.00019178,2]
[330563594,1719574265244,-500.0,0.00019178,2]
[330563595,1719574265253,-500.0,0.00019178,2]
[330563596,1719574265267,-1696.56,0.00019178,2]
[330563597,1719574265276,-772.24,0.00019178,2]
[330563598,1719574265286,-1781.24,0.00019178,2]
[330563599,1719574265295,-2886.37,0.00019178,2]
[330563600,1719574265309,-751.23,0.00019178,2]
[330563601,1719574265319,-500.0,0.00019178,2]
[330563602,1719574265328,-1409.61,0.00019178,2]
[330563603,1719574265337,-1692.18,0.00019178,2]
[330563604,1719574265346,-151.0,0.00019178,2]
[330563605,1719574265355,-1000.0,0.00019178,2]
[330563606,1719574265364,-151.0,0.00019178,2]
[330563607,1719574265373,-1389.54,0.00019178,2]
[330563608,1719574265383,-151.0,0.00019178,2]
[330563609,1719574265393,-151.0,0.00019178,2]
[330563610,1719574265403,-500.0,0.00019178,2]
[330563611,1719574265413,-151.0,0.00019178,2]
[330563612,1719574265423,-151.0,0.00019178,2]
[330563613,1719574265433,-500.0,0.00019178,2]
[330563614,1719574265442,-151.0,0.00019178,2]
[330563615,1719574265452,-151.0,0.00019178,2]
[330563616,1719574265462,-151.0,0.00019178,2]
[330563617,1719574265472,-151.0,0.00019178,2]
[330563618,1719574265482,-500.0,0.00019178,2]
[330563619,1719574265491,-151.0,0.00019178,2]
[330563620,1719574265501,-151.0,0.00019178,2]
[330563621,1719574265511,-151.0,0.00019178,2]
[330563622,1719574265521,-151.0,0.00019178,2]
[330563623,1719574265530,-526.49,0.00019178,2]
[330563624,1719574265540,-151.0,0.00019178,2]
[330563625,1719574265553,-2818.62,0.00019178,2]
[330563626,1719574265562,-151.0,0.00019178,2]
[330563627,1719574265572,-151.0,0.00019178,2]
[330563628,1719574265581,-151.0,0.00019178,2]
[330563629,1719574265592,-151.0,0.00019178,2]
[330563630,1719574265602,-151.0,0.00019178,2]
[330563631,1719574265612,-151.0,0.00019178,2]
[330563632,1719574265622,-151.0,0.00019178,2]
[330563633,1719574265631,-151.0,0.00019178,2]
[330563634,1719574265643,-151.0,0.00019178,2]
[330563635,1719574265863,-151.0,0.00019178,2]
[330563636,1719574265873,-184.224784,0.00019178,2]
[330563637,1719574265882,-151.0,0.00019178,2]
[330563638,1719574265891,-279.81368,0.00019178,2]
[330563639,1719574265901,-151.0,0.00019178,2]
[330563640,1719574265910,-1345.94,0.00019178,2]
[330563641,1719574265920,-525.59,0.00019178,2]
[330563642,1719574265929,-151.0,0.00019178,2]
[330563643,1719574265939,-556.15,0.00019178,2]
[330563644,1719574265948,-1330.83,0.00019178,2]
[330563645,1719574265958,-500.0,0.00019178,2]
[330563646,1719574265967,-500.0,0.00019178,2]
[330563647,1719574265977,-3067.63,0.00019178,2]
[330563648,1719574265986,-201.936095,0.00019178,2]
[330563649,1719574265996,-151.0,0.00019178,2]
[330563650,1719574266005,-500.0,0.00019178,2]
[330563651,1719574266014,-201.936095,0.00019178,2]
[330563652,1719574266024,-151.0,0.00019178,2]
[330563653,1719574266033,-201.936095,0.00019178,2]
[330563654,1719574266043,-151.532561,0.00019178,2]
[330563655,1719574266057,-201.936095,0.00019178,2]
[330563656,1719574266067,-500.0,0.00019178,2]
[330563657,1719574266078,-201.936095,0.00019178,2]
[330563658,1719574266088,-201.936095,0.00019178,2]
[330563659,1719574266098,-201.936095,0.00019178,2]
[330563660,1719574266107,-201.936095,0.00019178,2]
[330563661,1719574266118,-201.936095,0.00019178,2]
[330563662,1719574266129,-500.0,0.00019178,2]